fUST/lending_fUST_20260518
["ID","MTS","AMOUNT","RATE_DAILY","PERIOD"]
[422557000,1779075039000,-500.0,0.00010958,2]
[422557002,1779075039000,-795.04,0.00010958,2]
[422557012,1779075039000,-4646.48,0.00010958,2]
[422556975,1779075039000,-500.70344577,0.00010958,2]
[422556997,1779075039000,-500.0,0.00010958,2]
[422556974,1779075039000,-3244.06,0.00010958,2]
[422556950,1779075039000,-500.11613312,0.00010958,2]
[422556972,1779075039000,-400.88046074,0.00010958,2]
[422556954,1779075039000,-500.0,0.00010958,2]
[422556953,1779075039000,-500.0,0.00010958,2]
[422556943,1779075039000,-500.77092872,0.00010958,2]
[422556946,1779075039000,-500.06245122,0.00010958,2]
[422556945,1779075039000,-304.82166537,0.00010958,2]
[422556947,1779075039000,-500.0,0.00010958,2]
[422556944,1779075039000,-2259.97,0.00010958,2]
[422556951,1779075039000,-500.0,0.00010958,2]
[422557014,1779075039000,-285.66561484,0.00010958,2]
[422556948,1779075039000,-744.61,0.00010958,2]
[422556952,1779075039000,-566.47254845,0.00010958,2]
[422556949,1779075039000,-434.07275326,0.00010958,2]
[422556955,1779075039000,-500.0,0.00010958,2]
[422556956,1779075039000,-500.81756745,0.00010958,2]
[422556965,1779075039000,-500.0,0.00010958,2]
[422556966,1779075039000,-500.0,0.00010958,2]
[422556959,1779075039000,-500.0,0.00010958,2]
[422556957,1779075039000,-500.89240226,0.00010958,2]
[422556958,1779075039000,-500.0,0.00010958,2]
[422556968,1779075039000,-2098.78,0.00010958,2]
[422556967,1779075039000,-501.14389061,0.00010958,2]
[422556960,1779075039000,-752.28,0.00010958,2]
[422556963,1779075039000,-155.73457902,0.00010958,2]
[422556962,1779075039000,-500.43876774,0.00010958,2]
[422556964,1779075039000,-500.0,0.00010958,2]
[422556961,1779075039000,-500.0,0.00010958,2]
[422556969,1779075039000,-500.0,0.00010958,2]
[422556970,1779075039000,-500.49033117,0.00010958,2]
[422556971,1779075039000,-699.16,0.00010958,2]
[422556973,1779075039000,-500.5156537,0.00010958,2]
[422557003,1779075039000,-500.86909965,0.00010958,2]
[422556989,1779075039000,-500.0,0.00010958,2]
[422557013,1779075039000,-1558.35,0.00010958,2]
[422557040,1779075039000,-500.0,0.00010958,2]
[422557046,1779075039000,-848.9,0.00010958,2]
[422557045,1779075039000,-500.0,0.00010958,2]
[422557055,1779075039000,-500.0,0.00010958,2]
[422557057,1779075039000,-698.09,0.00010958,2]
[422557058,1779075039000,-188.8140348,0.00010958,2]
[422557056,1779075039000,-500.0,0.00010958,2]
[422557054,1779075039000,-1038.86,0.00010958,2]
[422557047,1779075039000,-500.0,0.00010958,2]
[422557048,1779075039000,-500.0,0.00010958,2]
[422557050,1779075039000,-500.0,0.00010958,2]
[422557053,1779075039000,-500.0,0.00010958,2]
[422557052,1779075039000,-500.0,0.00010958,2]
[422557038,1779075039000,-1349.35,0.00010958,2]
[422557049,1779075039000,-500.0,0.00010958,2]
[422557059,1779075039000,-500.0,0.00010958,2]
[422557061,1779075039000,-500.0,0.00010958,2]
[422557062,1779075039000,-500.0,0.00010958,2]
[422557064,1779075039000,-500.0,0.00010958,2]
[422557063,1779075039000,-883.59,0.00010958,2]
[422557060,1779075039000,-1441.96,0.00010958,2]
[422557066,1779075039000,-2413.7,0.00010958,2]
[422557065,1779075039000,-500.0,0.00010958,2]
[422557067,1779075039000,-4558.02,0.00010958,2]
[422557068,1779075039000,-1334.05,0.00010958,2]
[422557069,1779075039000,-500.81239023,0.00010958,2]
[422557070,1779075039000,-500.0,0.00010958,2]
[422557011,1779075039000,-936.27,0.00010958,2]
[422557051,1779075039000,-500.0,0.00010958,2]
[422557043,1779075039000,-500.0,0.00010958,2]
[422557071,1779075039000,-500.0,0.00010958,2]
[422557042,1779075039000,-828.74,0.00010958,2]
[422557039,1779075039000,-2496.77,0.00010958,2]
[422557004,1779075039000,-753.12,0.00010958,2]
[422557008,1779075039000,-500.0,0.00010958,2]
[422557007,1779075039000,-500.0,0.00010958,2]
[422557006,1779075039000,-969.34,0.00010958,2]
[422557010,1779075039000,-690.29,0.00010958,2]
[422557005,1779075039000,-601.12904285,0.00010958,2]
[422557016,1779075039000,-500.0,0.00010958,2]
[422557025,1779075039000,-830.54,0.00010958,2]
[422557026,1779075039000,-710.1,0.00010958,2]
[422557028,1779075039000,-500.0,0.00010958,2]
[422557024,1779075039000,-501.97518161,0.00010958,2]
[422557018,1779075039000,-500.0,0.00010958,2]
[422557017,1779075039000,-504.85,0.00010958,2]
[422557009,1779075039000,-500.0,0.00010958,2]
[422557019,1779075039000,-742.1,0.00010958,2]
[422557037,1779075039000,-1000.0,0.00010958,2]
[422557041,1779075039000,-502.30066678,0.00010958,2]
[422557035,1779075039000,-500.0,0.00010958,2]
[422557044,1779075039000,-500.0,0.00010958,2]
[422557015,1779075039000,-500.0,0.00010958,2]
[422557033,1779075039000,-500.0,0.00010958,2]
[422557036,1779075039000,-212.01533992,0.00010958,2]
[422557034,1779075039000,-500.0,0.00010958,2]
[422557030,1779075039000,-1149.2,0.00010958,2]
[422557022,1779075039000,-709.19,0.00010958,2]
[422557023,1779075039000,-500.0,0.00010958,2]
[422557020,1779075039000,-1710.27,0.00010958,2]
[422557021,1779075039000,-998.66,0.00010958,2]
[422557031,1779075039000,-500.0,0.00010958,2]
[422557115,1779075040000,-523.04,0.00010958,2]
[422557117,1779075040000,-500.0,0.00010958,2]
[422557116,1779075040000,-544.43041216,0.00010958,2]
[422557111,1779075040000,-500.82428942,0.00010958,2]
[422557112,1779075040000,-1575.02,0.00010958,2]
[422557106,1779075040000,-581.20098427,0.00010958,2]
[422557114,1779075040000,-500.0,0.00010958,2]
[422557113,1779075040000,-500.0,0.00010958,2]
[422557109,1779075040000,-500.0,0.00010958,2]
[422557107,1779075040000,-609.9,0.00010958,2]
[422557104,1779075040000,-500.0,0.00010958,2]
[422557110,1779075040000,-706.39,0.00010958,2]
[422557118,1779075040000,-500.79162383,0.00010958,2]
[422557136,1779075040000,-500.0,0.00010958,2]
[422557122,1779075040000,-679.08,0.00010958,2]
[422557124,1779075040000,-500.0,0.00010958,2]
[422557123,1779075040000,-500.0,0.00010958,2]
[422557121,1779075040000,-500.0,0.00010958,2]
[422557126,1779075040000,-500.99931442,0.00010958,2]
[422557137,1779075040000,-1148.21,0.00010958,2]
[422557125,1779075040000,-500.0,0.00010958,2]
[422557128,1779075040000,-782.89,0.00010958,2]
[422557127,1779075040000,-501.7463192,0.00010958,2]
[422557129,1779075040000,-500.0,0.00010958,2]
[422557130,1779075040000,-500.0,0.00010958,2]
[422557132,1779075040000,-501.12872936,0.00010958,2]
[422557102,1779075040000,-1243.02,0.00010958,2]
[422557119,1779075040000,-4611.3,0.00010958,2]
[422557095,1779075040000,-513.65,0.00010958,2]
[422557086,1779075040000,-500.0,0.00010958,2]
[422557096,1779075040000,-500.84960828,0.00010958,2]
[422557131,1779075040000,-500.0,0.00010958,2]
[422557072,1779075040000,-500.0,0.00010958,2]
[422557073,1779075040000,-380.63818256,0.00010958,2]
[422557075,1779075040000,-2091.5,0.00010958,2]
[422557076,1779075040000,-639.53413064,0.00010958,2]
[422557074,1779075040000,-536.85,0.00010958,2]
[422557084,1779075040000,-1775.7,0.00010958,2]
[422557078,1779075040000,-676.66,0.00010958,2]
[422557077,1779075040000,-632.54,0.00010958,2]
[422557081,1779075040000,-500.68333617,0.00010958,2]
[422557080,1779075040000,-606.18,0.00010958,2]
[422557087,1779075040000,-500.0,0.00010958,2]
[422557085,1779075040000,-500.0,0.00010958,2]
[422557079,1779075040000,-500.0,0.00010958,2]
[422557082,1779075040000,-500.0,0.00010958,2]
[422557083,1779075040000,-554.4946045,0.00010958,2]
[422557089,1779075040000,-1209.76,0.00010958,2]
[422557099,1779075040000,-500.0,0.00010958,2]
[422557088,1779075040000,-753.88,0.00010958,2]
[422557101,1779075040000,-847.24,0.00010958,2]
[422557090,1779075040000,-500.0,0.00010958,2]
[422557100,1779075040000,-500.0,0.00010958,2]
[422557091,1779075040000,-209.35941803,0.00010958,2]
[422557094,1779075040000,-2793.19,0.00010958,2]
[422557092,1779075040000,-798.55,0.00010958,2]
[422557098,1779075040000,-2298.64,0.00010958,2]
[422557097,1779075040000,-500.0,0.00010958,2]
[422557093,1779075040000,-630.22,0.00010958,2]
[422557135,1779075040000,-500.0,0.00010958,2]
[422557159,1779075040000,-500.84526679,0.00010958,2]
[422557134,1779075040000,-500.0,0.00010958,2]
[422557170,1779075040000,-500.0,0.00010958,2]
[422557171,1779075040000,-500.0,0.00010958,2]
[422557173,1779075040000,-1037.32,0.00010958,2]
[422557165,1779075040000,-500.0,0.00010958,2]
[422557169,1779075040000,-500.0,0.00010958,2]
[422557175,1779075040000,-500.26477285,0.00010958,2]
[422557185,1779075040000,-3530.89,0.00010958,2]
[422557186,1779075040000,-500.0,0.00010958,2]
[422557174,1779075040000,-500.16462604,0.00010958,2]
[422557179,1779075040000,-500.76250268,0.00010958,2]
[422557176,1779075040000,-500.0,0.00010958,2]
[422557180,1779075040000,-591.41,0.00010958,2]
[422557178,1779075040000,-500.75730693,0.00010958,2]
[422557181,1779075040000,-500.1965886,0.00010958,2]
[422557182,1779075040000,-500.31274654,0.00010958,2]
[422557184,1779075040000,-500.0,0.00010958,2]
[422557183,1779075040000,-1654.08,0.00010958,2]
[422557187,1779075040000,-500.79646576,0.00010958,2]
[422557189,1779075040000,-2604.01,0.00010958,2]
[422557188,1779075040000,-500.0,0.00010958,2]
[422557196,1779075040000,-11760.18,0.00010958,2]
[422557193,1779075040000,-2419.71,0.00010958,2]
[422557194,1779075040000,-500.0,0.00010958,2]
[422557190,1779075040000,-501.00843227,0.00010958,2]
[422557191,1779075040000,-500.63732058,0.00010958,2]
[422557195,1779075040000,-2386.58,0.00010958,2]
[422557133,1779075040000,-500.0,0.00010958,2]
[422557162,1779075040000,-500.0,0.00010958,2]
[422557172,1779075040000,-500.0,0.00010958,2]
[422557177,1779075040000,-1080.95,0.00010958,2]
[422557167,1779075040000,-726.92,0.00010958,2]
[422557138,1779075040000,-500.0,0.00010958,2]
[422557168,1779075040000,-1669.26,0.00010958,2]
[422557140,1779075040000,-500.0,0.00010958,2]
[422557141,1779075040000,-500.0,0.00010958,2]
[422557142,1779075040000,-500.79250382,0.00010958,2]
[422557143,1779075040000,-377.55092969,0.00010958,2]
[422557145,1779075040000,-500.0,0.00010958,2]
[422557144,1779075040000,-1507.18,0.00010958,2]
[422557146,1779075040000,-500.0,0.00010958,2]
[422557148,1779075040000,-4764.35,0.00010958,2]
[422557147,1779075040000,-500.0,0.00010958,2]
[422557149,1779075040000,-500.83032356,0.00010958,2]
[422557152,1779075040000,-500.0,0.00010958,2]
[422557151,1779075040000,-500.0,0.00010958,2]
[422557139,1779075040000,-500.20073086,0.00010958,2]
[422557150,1779075040000,-500.0,0.00010958,2]
[422557160,1779075040000,-500.52810459,0.00010958,2]
[422557164,1779075040000,-500.0,0.00010958,2]
[422557163,1779075040000,-500.80411865,0.00010958,2]
[422557161,1779075040000,-500.0,0.00010958,2]
[422557158,1779075040000,-502.21158969,0.00010958,2]
[422557156,1779075040000,-501.51503938,0.00010958,2]
[422557166,1779075040000,-500.61817377,0.00010958,2]
[422557157,1779075040000,-800.94,0.00010958,2]
[422557155,1779075040000,-635.54732141,0.00010958,2]
[422557154,1779075040000,-500.0,0.00010958,2]
[422557153,1779075040000,-684.54,0.00010958,2]
[422557192,1779075040000,-500.0,0.00010958,2]
[422557213,1779075041000,-500.0,0.00010958,2]
[422557223,1779075041000,-1396.76,0.00010958,2]
[422557214,1779075041000,-296.02498733,0.00010958,2]
[422557219,1779075041000,-500.0,0.00010958,2]
[422557218,1779075041000,-501.21696842,0.00010958,2]
[422557212,1779075041000,-1513.14,0.00010958,2]
[422557224,1779075041000,-500.32618389,0.00010958,2]
[422557216,1779075041000,-1302.62,0.00010958,2]
[422557217,1779075041000,-836.0,0.00010958,2]
[422557208,1779075041000,-500.17677959,0.00010958,2]
[422557215,1779075041000,-712.83,0.00010958,2]
[422557210,1779075041000,-1109.24,0.00010958,2]
[422557203,1779075041000,-500.0,0.00010958,2]
[422557207,1779075041000,-683.92,0.00010958,2]
[422557206,1779075041000,-500.0,0.00010958,2]
[422557204,1779075041000,-2424.09,0.00010958,2]
[422557202,1779075041000,-500.0,0.00010958,2]
[422557205,1779075041000,-4055.19,0.00010958,2]
[422557211,1779075041000,-1056.84,0.00010958,2]
[422557201,1779075041000,-501.44654233,0.00010958,2]
[422557200,1779075041000,-5167.29,0.00010958,2]
[422557199,1779075041000,-500.0,0.00010958,2]
[422557197,1779075041000,-500.20901761,0.00010958,2]
[422557198,1779075041000,-500.0,0.00010958,2]
[422557220,1779075041000,-500.08411655,0.00010958,2]
[422557209,1779075041000,-963.35,0.00010958,2]
[422557222,1779075041000,-614.21,0.00010958,2]
[422557248,1779075041000,-180.16477915,0.00010958,2]
[422557226,1779075041000,-500.0,0.00010958,2]
[422557251,1779075041000,-1304.02635919,0.00010958,2]
[422557249,1779075041000,-572.58557785,0.00010958,2]
[422557250,1779075041000,-362.16793648,0.00010958,2]
[422557247,1779075041000,-319.83522085,0.00010958,2]
[422557240,1779075041000,-934.99,0.00010958,2]
[422557246,1779075041000,-500.0,0.00010958,2]
[422557244,1779075041000,-4054.48,0.00010958,2]
[422557221,1779075041000,-500.0,0.00010958,2]
[422557243,1779075041000,-8136.61,0.00010958,2]
[422557241,1779075041000,-500.68055527,0.00010958,2]
[422557242,1779075041000,-3726.08,0.00010958,2]
[422557239,1779075041000,-500.0,0.00010958,2]
[422557245,1779075041000,-500.0,0.00010958,2]
[422557234,1779075041000,-500.0,0.00010958,2]
[422557236,1779075041000,-500.73567172,0.00010958,2]
[422557233,1779075041000,-661.68,0.00010958,2]
[422557225,1779075041000,-4679.52,0.00010958,2]
[422557238,1779075041000,-500.0,0.00010958,2]
[422557227,1779075041000,-500.0,0.00010958,2]
[422557237,1779075041000,-556.47515472,0.00010958,2]
[422557232,1779075041000,-4025.77,0.00010958,2]
[422557231,1779075041000,-500.0,0.00010958,2]
[422557235,1779075041000,-500.0,0.00010958,2]
[422557228,1779075041000,-4692.15,0.00010958,2]
[422557230,1779075041000,-500.0,0.00010958,2]
[422557229,1779075041000,-500.0,0.00010958,2]
[422557274,1779075046000,-3145.43678463,0.00010848,2]
[422557461,1779076238000,-151.5,0.00010684,2]
[422557444,1779076238000,-943.6529815,9.265e-05,2]
[422557446,1779076238000,-1532.0179605,9.265e-05,2]
[422557457,1779076238000,-356.70752576,9.502e-05,2]
[422557458,1779076238000,-300.0,9.738e-05,2]
[422557460,1779076238000,-151.5,0.00010684,2]
[422557456,1779076238000,-5000.0,9.359e-05,2]
[422557453,1779076238000,-2161.5244944,9.265e-05,2]
[422557459,1779076238000,-185.0,0.00010651,2]
[422557462,1779076238000,-151.5,0.00010684,2]
[422557469,1779076238000,-500.0,0.00010684,2]
[422557470,1779076238000,-465.67092796,0.00010684,2]
[422557468,1779076238000,-500.0,0.00010684,2]
[422557467,1779076238000,-500.0,0.00010684,2]
[422557455,1779076238000,-238.0,9.358e-05,2]
[422557466,1779076238000,-281.93327941,0.00010684,2]
[422557464,1779076238000,-500.0,0.00010684,2]
[422557463,1779076238000,-155.49396709,0.00010684,2]
[422557465,1779076238000,-500.0,0.00010684,2]
[422557498,1779076247000,-500.0,0.00010684,2]
[422557491,1779076247000,-500.0,0.00010684,2]
[422557490,1779076247000,-34.32907204,0.00010684,2]
[422557492,1779076247000,-500.0,0.00010684,2]
[422557494,1779076247000,-159.09372934,0.00010684,2]
[422557495,1779076247000,-500.0,0.00010684,2]
[422557496,1779076247000,-500.0,0.00010684,2]
[422557502,1779076247000,-584.53253878,0.00010684,2]
[422557497,1779076247000,-500.0,0.00010684,2]
[422557501,1779076247000,-253.08647295,0.00010684,2]
[422557503,1779076247000,-3464.03068191,0.00010684,2]
[422557504,1779076247000,-300.0,0.00010712,2]
[422557493,1779076247000,-500.0,0.00010684,2]
[422557500,1779076247000,-500.0,0.00010684,2]
[422557499,1779076247000,-500.0,0.00010684,2]
[422557506,1779076247000,-160.0,0.00010734,2]
[422557505,1779076247000,-161.68513202,0.00010734,2]
[422557507,1779076247000,-12189.24288011,0.00010758,2]
[422557513,1779076595000,596.51154533,0.0001499,120]
[422557514,1779076603000,339.57901193,0.00014993,120]
[422557515,1779076604000,339.57901193,0.00015033,120]
[422557516,1779076604000,339.57901193,0.00015074,120]
[422557580,1779077432000,-557.35003978,9.232e-05,2]
[422557578,1779077432000,-4442.64996022,9.232e-05,2]
[422557576,1779077432000,-743.35003978,9.14e-05,2]
[422557582,1779077432000,-363.09109387,9.372e-05,2]
[422557584,1779077432000,-474.81447438,9.89e-05,2]
[422557586,1779077432000,-1899.25789753,9.89e-05,2]
[422557588,1779077432000,-4269.05693916,9.89e-05,2]
[422557598,1779077432000,-4497.07088417,0.0001,2]
[422557590,1779077432000,-300.0,9.999e-05,2]
[422557594,1779077432000,-1200.0,9.999e-05,2]
[422557600,1779077432000,-649.43209651,0.0001,2]
[422557604,1779077432000,-307.0373061,0.0001,2]
[422557595,1779077432000,-2395.17103368,0.0001,2]
[422557592,1779077432000,-300.0,9.999e-05,2]
[422557723,1779077440000,-1765.38613729,0.0001,2]
[422557725,1779077440000,-1191.59885502,0.0001,2]
[422557724,1779077440000,-3000.80053336,0.0001,2]
[422557733,1779077443000,-2653.8385751,0.0001,2]
[422557735,1779077443000,-325.9226287,0.00010105,2]
[422557734,1779077443000,-6720.50136601,0.0001,2]
[422557736,1779077443000,-325.9079251,0.00010105,2]
[422557744,1779077443000,-500.0,0.00010757,2]
[422557737,1779077443000,-160.0,0.00010593,2]
[422557739,1779077443000,-185.0,0.00010651,2]
[422557741,1779077443000,-500.0,0.00010757,2]
[422557738,1779077443000,-161.68513202,0.00010646,2]
[422557743,1779077443000,-500.0,0.00010757,2]
[422557742,1779077443000,-500.0,0.00010757,2]
[422557745,1779077443000,-457.68267702,0.00010757,2]
[422557746,1779077443000,-243.76714496,0.00010757,2]
[422557749,1779077443000,-414.25839924,0.00010758,2]
[422557748,1779077443000,-4042.89343697,0.00010758,2]
[422557747,1779077443000,-6457.56540466,0.00010758,2]
[422557750,1779077443000,-2220.94122709,0.00010758,2]
[422557740,1779077443000,-500.0,0.00010757,2]
[422557789,1779077447000,-500.0,0.00010958,2]
[422557794,1779077447000,-501.05755559,0.00010958,2]
[422557800,1779077447000,-500.0,0.00010958,2]
[422557791,1779077447000,-1330.2511,0.00010958,2]
[422557788,1779077447000,-500.0,0.00010958,2]
[422557793,1779077447000,-501.11523714,0.00010958,2]
[422557790,1779077447000,-500.0,0.00010958,2]
[422557796,1779077447000,-500.0,0.00010958,2]
[422557778,1779077447000,-500.0,0.00010958,2]
[422557783,1779077447000,-500.8521573,0.00010958,2]
[422557792,1779077447000,-500.0,0.00010958,2]
[422557798,1779077447000,-676.26,0.00010958,2]
[422557802,1779077447000,-1470.92,0.00010958,2]
[422557795,1779077447000,-227.03991049,0.00010958,2]
[422557799,1779077447000,-500.0,0.00010958,2]
[422557812,1779077447000,-871.33,0.00010958,2]
[422557813,1779077447000,-803.66,0.00010958,2]
[422557801,1779077447000,-526.05749316,0.00010958,2]
[422557803,1779077447000,-500.0,0.00010958,2]
[422557805,1779077447000,-500.0,0.00010958,2]
[422557804,1779077447000,-588.62,0.00010958,2]
[422557808,1779077447000,-500.0,0.00010958,2]
[422557811,1779077447000,-720.18,0.00010958,2]
[422557785,1779077447000,-500.93158519,0.00010958,2]
[422557797,1779077447000,-944.04,0.00010958,2]
[422557779,1779077447000,-500.0,0.00010958,2]
[422557809,1779077447000,-500.9438569,0.00010958,2]
[422557782,1779077447000,-500.0,0.00010958,2]
[422557756,1779077447000,-152.0,0.00010649,7]
[422557758,1779077447000,-23083.06741665,0.00010758,2]
[422557757,1779077447000,-152.0,0.00010649,7]
[422557759,1779077447000,-267.56136312,0.0001078,2]
[422557761,1779077447000,-230.26933762,0.000108,2]
[422557760,1779077447000,-359.30040854,0.000108,2]
[422557763,1779077447000,-152.0,0.00010848,2]
[422557774,1779077447000,-500.0,0.00010958,2]
[422557773,1779077447000,-500.0,0.00010958,2]
[422557762,1779077447000,-152.0,0.00010822,2]
[422557766,1779077447000,-1879.41107656,0.000109,2]
[422557769,1779077447000,-279.296,0.00010957,2]
[422557784,1779077447000,-717.57,0.00010958,2]
[422557767,1779077447000,-1733.08652806,0.000109,2]
[422557768,1779077447000,-1908.50581987,0.000109,2]
[422557765,1779077447000,-2083.92511174,0.000109,2]
[422557764,1779077447000,-782.16917844,0.000109,2]
[422557771,1779077447000,-3412.5452,0.00010958,2]
[422557772,1779077447000,-155.15129415,0.00010958,2]
[422557786,1779077447000,-500.0,0.00010958,2]
[422557787,1779077447000,-263.87469167,0.00010958,2]
[422557776,1779077447000,-788.4,0.00010958,2]
[422557775,1779077447000,-1148.3275,0.00010958,2]
[422557777,1779077447000,-500.0,0.00010958,2]
[422557781,1779077447000,-1056.75,0.00010958,2]
[422557780,1779077447000,-500.29557385,0.00010958,2]
[422557770,1779077447000,-180.93468634,0.00010957,2]
[422557810,1779077447000,-500.0,0.00010958,2]
[422557806,1779077447000,-500.0,0.00010958,2]
[422557814,1779077447000,-657.24,0.00010958,2]
[422557852,1779077447000,-500.0,0.00010958,2]
[422557853,1779077447000,-500.0,0.00010958,2]
[422557846,1779077447000,-559.89,0.00010958,2]
[422557849,1779077447000,-549.91,0.00010958,2]
[422557847,1779077447000,-499.08542258,0.00010958,2]
[422557848,1779077447000,-1514.25,0.00010958,2]
[422557851,1779077447000,-500.0,0.00010958,2]
[422557850,1779077447000,-500.0,0.00010958,2]
[422557854,1779077447000,-292.36763306,0.00010958,2]
[422557855,1779077447000,-500.0,0.00010958,2]
[422557858,1779077447000,-500.32393836,0.00010958,2]
[422557856,1779077447000,-1659.84,0.00010958,2]
[422557843,1779077447000,-949.89,0.00010958,2]
[422557860,1779077447000,-500.0,0.00010958,2]
[422557857,1779077447000,-500.0,0.00010958,2]
[422557862,1779077447000,-1359.32,0.00010958,2]
[422557863,1779077447000,-957.05,0.00010958,2]
[422557865,1779077447000,-500.0,0.00010958,2]
[422557864,1779077447000,-2414.34,0.00010958,2]
[422557861,1779077447000,-500.0,0.00010958,2]
[422557867,1779077447000,-500.0,0.00010958,2]
[422557866,1779077447000,-500.0,0.00010958,2]
[422557869,1779077447000,-500.0,0.00010958,2]
[422557868,1779077447000,-500.0,0.00010958,2]
[422557870,1779077447000,-500.0,0.00010958,2]
[422557807,1779077447000,-500.0,0.00010958,2]
[422557859,1779077447000,-4452.87,0.00010958,2]
[422557844,1779077447000,-500.64573221,0.00010958,2]
[422557845,1779077447000,-500.0,0.00010958,2]
[422557841,1779077447000,-500.0,0.00010958,2]
[422557816,1779077447000,-500.0,0.00010958,2]
[422557818,1779077447000,-500.0,0.00010958,2]
[422557815,1779077447000,-439.07932404,0.00010958,2]
[422557819,1779077447000,-500.0,0.00010958,2]
[422557820,1779077447000,-500.75782657,0.00010958,2]
[422557826,1779077447000,-500.0,0.00010958,2]
[422557817,1779077447000,-500.0,0.00010958,2]
[422557824,1779077447000,-1137.62,0.00010958,2]
[422557822,1779077447000,-500.0,0.00010958,2]
[422557842,1779077447000,-500.0,0.00010958,2]
[422557821,1779077447000,-1621.57,0.00010958,2]
[422557825,1779077447000,-501.59464652,0.00010958,2]
[422557823,1779077447000,-500.0,0.00010958,2]
[422557827,1779077447000,-500.0,0.00010958,2]
[422557831,1779077447000,-500.0,0.00010958,2]
[422557830,1779077447000,-500.0,0.00010958,2]
[422557839,1779077447000,-782.85,0.00010958,2]
[422557840,1779077447000,-500.0,0.00010958,2]
[422557829,1779077447000,-500.0,0.00010958,2]
[422557837,1779077447000,-1780.24,0.00010958,2]
[422557835,1779077447000,-500.0,0.00010958,2]
[422557834,1779077447000,-500.0,0.00010958,2]
[422557833,1779077447000,-500.0,0.00010958,2]
[422557832,1779077447000,-500.0,0.00010958,2]
[422557828,1779077447000,-552.09,0.00010958,2]
[422557836,1779077447000,-502.04778168,0.00010958,2]
[422557838,1779077447000,-501.31037393,0.00010958,2]
[422557886,1779077448000,-167.57992736,0.00010958,2]
[422557876,1779077448000,-501.89702432,0.00010958,2]
[422557875,1779077448000,-500.0,0.00010958,2]
[422557877,1779077448000,-500.0,0.00010958,2]
[422557873,1779077448000,-503.27394546,0.00010958,2]
[422557872,1779077448000,-500.0,0.00010958,2]
[422557874,1779077448000,-897.26,0.00010958,2]
[422557871,1779077448000,-501.10747611,0.00010958,2]
[422557883,1779077448000,-4404.28,0.00010958,2]
[422557879,1779077448000,-500.0,0.00010958,2]
[422557880,1779077448000,-813.53,0.00010958,2]
[422557881,1779077448000,-500.0,0.00010958,2]
[422557884,1779077448000,-1313.96,0.00010958,2]
[422557878,1779077448000,-500.0,0.00010958,2]
[422557882,1779077448000,-500.0,0.00010958,2]
[422557885,1779077448000,-332.42007264,0.00010958,2]
[422557888,1779077448000,-1122.15,0.00010958,2]
[422557887,1779077448000,-879.91,0.00010958,2]
[422557889,1779077448000,-235.35963973,0.00010958,2]
[422557894,1779078247000,-151.0,0.00010958,16]
[422557910,1779078429000,-151.0,0.00010958,16]
[422557962,1779078633000,-500.0,9.958e-05,2]
[422557960,1779078633000,-280.66,9.958e-05,2]
[422557959,1779078633000,-500.0,9.958e-05,2]
[422557957,1779078633000,-361.75970599,9.785e-05,2]
[422557955,1779078633000,-5000.0,9.661e-05,2]
[422557964,1779078633000,-26483.03925988,0.00010558,2]
[422558008,1779078638000,-311.8854981,0.00010558,2]
[422558010,1779078641000,-3922.60966843,0.00010453,2]